bitfinex/quotes_BTCUSD_20220218
["timestamp","ask_amount","ask_price","bid_price","bid_amount"]
[1645186708130,0.25135622,40508.0,40506.0,0.00024818]
[1645186708331,0.25135622,40508.0,40505.0,0.00401255]
[1645186708332,0.332495,40507.0,40505.0,0.00401255]
[1645186710282,0.332495,40510.0,40505.0,0.00401255]
[1645186710477,0.002,40512.0,40505.0,0.06576328]
[1645186710876,0.00324305,40509.0,40505.0,0.00024818]
[1645186711097,0.01313005,40509.0,40505.0,0.00024818]
[1645186711276,0.00324305,40509.0,40508.0,0.26820726]
[1645186711479,0.00324305,40509.0,40505.0,0.00024818]
[1645186711877,0.00324305,40509.0,40501.0,0.32350146]
[1645186712076,0.00324305,40509.0,40505.0,0.00024818]
[1645186712479,0.56244158,40508.0,40505.0,0.00024818]
[1645186713128,0.56244158,40508.0,40501.0,0.1]
[1645186713328,0.22994658,40508.0,40504.0,0.00024818]
[1645186714328,0.22994658,40508.0,40501.0,0.05]
[1645186714527,0.22994658,40508.0,40504.0,0.00024818]
[1645186715530,0.22994658,40508.0,40501.0,0.05]
[1645186715728,0.22994658,40508.0,40504.0,0.00024865]
[1645186715927,0.00324305,40509.0,40504.0,0.00024865]
[1645186716129,0.00133083,40508.0,40504.0,0.00024865]
[1645186718974,0.00133083,40508.0,40504.0,0.00015121]
[1645186719173,0.00133083,40508.0,40503.0,0.06175194]
[1645186719775,0.00133083,40508.0,40507.0,0.27646388]
[1645186720840,0.00188378,40509.0,40508.0,0.33648749]
[1645186721042,0.00188378,40509.0,40508.0,0.43648749]
[1645186721236,0.002,40513.0,40508.0,0.59598749]
[1645186721636,0.002,40513.0,40508.0,0.61968749]
[1645186721837,0.00035365,40529.0,40522.0,0.24195392]
[1645186722039,0.00035365,40531.0,40522.0,0.33736392]
[1645186722237,0.00179,40532.0,40523.0,0.341695]
[1645186722238,0.00035365,40529.0,40523.0,0.341695]
[1645186722439,0.00140433,40530.0,40523.0,0.341695]
[1645186722639,0.00105068,40530.0,40523.0,0.341695]
[1645186722839,0.00105068,40530.0,40524.0,0.31726276]
[1645186723038,0.00026416,40529.0,40525.0,0.332495]
[1645186723240,0.0021,40533.0,40525.0,0.332495]
[1645186723241,0.07262194,40538.0,40528.0,0.332495]
[1645186723436,0.4664,40545.0,40531.0,0.332495]
[1645186723635,0.4664,40545.0,40531.0,0.422695]
[1645186723875,0.7282353,40545.0,40533.0,0.27107011]
[1645186724074,0.2629353,40545.0,40534.0,0.0092]
[1645186724275,0.332495,40539.0,40534.0,0.0092]
[1645186724876,0.334495,40539.0,40534.0,0.0092]
[1645186725275,0.002,40539.0,40529.0,0.1234061]
[1645186725478,0.002,40539.0,40533.0,0.06170754]
[1645186726080,0.52333183,40541.0,40533.0,0.06170754]
[1645186726283,0.009881,40539.0,40533.0,0.06170754]
[1645186726881,0.011881,40539.0,40533.0,0.06170754]
[1645186727083,0.086486,40538.0,40533.0,0.06170754]
[1645186727283,0.332495,40537.0,40533.0,0.06170754]
[1645186727487,0.332495,40536.0,40530.0,0.0095]
[1645186727734,0.332495,40536.0,40532.0,0.00026417]
[1645186727935,0.011881,40539.0,40532.0,0.00026417]
[1645186727936,0.086486,40537.0,40532.0,0.00026417]
[1645186728436,0.0025,40536.0,40532.0,0.00026417]
[1645186728638,0.332495,40535.0,40532.0,0.00026417]
[1645186728833,0.0025,40536.0,40527.0,0.30102794]
[1645186729033,0.0025,40536.0,40532.0,0.00026417]
[1645186729233,0.332495,40535.0,40532.0,0.00026417]
[1645186729632,0.00026413,40537.0,40532.0,0.00026417]
[1645186729935,0.0025,40540.0,40528.0,0.05]
[1645186730134,0.0025,40540.0,40532.0,0.00026417]
[1645186730332,0.009881,40535.0,40532.0,0.00026417]
[1645186730533,0.00026413,40537.0,40533.0,0.332495]
[1645186730734,0.00026413,40537.0,40533.0,0.382495]
[1645186730937,0.00026413,40537.0,40533.0,0.05]
[1645186731133,0.0035,40540.0,40533.0,0.05]
[1645186731375,0.00026394,40537.0,40532.0,0.00439862]
[1645186731877,0.00026394,40537.0,40532.0,0.06610762]
[1645186732274,0.0025,40540.0,40532.0,0.06584365]
[1645186732475,0.0025,40540.0,40532.0,0.06610762]
[1645186732676,0.00026394,40537.0,40532.0,0.06610762]
[1645186733076,0.00026394,40537.0,40533.0,0.332495]
[1645186733275,0.00026394,40537.0,40532.0,0.06610762]
[1645186733479,0.0025,40540.0,40532.0,0.06584365]
[1645186733675,0.0025,40540.0,40532.0,0.06610762]
[1645186733876,0.00026394,40537.0,40533.0,0.332495]
[1645186734076,0.01014494,40537.0,40533.0,0.332495]
[1645186734277,0.01014494,40537.0,40533.0,0.56286665]
[1645186734477,0.00026394,40537.0,40533.0,0.30102794]
[1645186734677,0.00026394,40537.0,40533.0,0.02]
[1645186734876,0.00026394,40537.0,40533.0,0.32102794]
[1645186734877,0.001,40537.0,40533.0,0.32102794]
[1645186735133,0.00126414,40537.0,40534.0,0.061701]
[1645186735927,0.001,40537.0,40534.0,0.061701]
[1645186736131,0.26918516,40541.0,40534.0,0.061701]
[1645186736328,0.00026414,40538.0,40535.0,0.30102794]
[1645186736529,0.00026414,40538.0,40534.0,0.06793654]
[1645186736930,0.00026414,40538.0,40535.0,0.30102794]
[1645186737131,0.001,40543.0,40536.0,0.332495]
[1645186737330,0.001,40543.0,40542.0,0.21752656]
[1645186738229,0.009879,40544.0,40543.0,0.33813293]
[1645186738432,0.0011,40545.0,40538.0,0.31062794]
[1645186738735,0.00136412,40545.0,40538.0,0.31062794]
[1645186738975,0.001,40544.0,40538.0,0.31062794]
[1645186739175,0.001,40544.0,40540.0,0.332495]
[1645186739675,0.001,40544.0,40538.0,0.0096]
[1645186739874,0.00126412,40544.0,40538.0,0.0096]
[1645186740076,0.00026412,40544.0,40540.0,0.27459432]
[1645186740278,0.00026412,40544.0,40538.0,0.0096]
[1645186740475,0.20038627,40542.0,40538.0,0.0096]
[1645186741075,0.20065039,40542.0,40538.0,0.0096]
[1645186741977,0.20038627,40542.0,40538.0,0.0096]
[1645186742376,0.20065039,40542.0,40538.0,0.0096]
[1645186742830,0.20165039,40542.0,40538.0,0.0096]
[1645186743129,0.20138627,40542.0,40538.0,0.0096]
[1645186743531,0.20138627,40542.0,40533.0,0.021]
[1645186743532,0.332495,40541.0,40533.0,0.021]
[1645186743733,0.332495,40540.0,40533.0,0.021]
[1645186744230,0.332495,40540.0,40533.0,0.02]
[1645186744430,0.0494,40541.0,40533.0,0.12]
[1645186744640,0.20038627,40542.0,40533.0,0.02]
[1645186744641,0.00026413,40539.0,40533.0,0.02]
[1645186744831,0.332495,40538.0,40533.0,0.02]
[1645186745434,0.56444677,40537.0,40533.0,0.02]
[1645186745730,0.332495,40534.0,40533.0,0.02]
[1645186747876,0.511729,40533.0,40531.0,0.00026417]
[1645186748077,0.061729,40533.0,40521.0,0.0097]
[1645186748279,0.332495,40532.0,40531.0,0.00026417]
[1645186749078,0.53507247,40532.0,40531.0,0.00026417]
[1645186749284,0.23742988,40527.0,40523.0,0.35345432]
[1645186749580,0.23742988,40527.0,40521.0,0.0097]
[1645186750641,0.23742988,40527.0,40522.0,0.00026419]
[1645186751636,0.23742988,40527.0,40521.0,0.0097]
[1645186751841,0.23742988,40527.0,40522.0,0.00026419]
[1645186752840,0.23842988,40527.0,40521.0,0.0097]
[1645186753040,0.23842988,40527.0,40522.0,0.00026419]
[1645186753242,0.332495,40526.0,40522.0,0.00026419]
[1645186753443,0.21195794,40525.0,40522.0,0.00026419]
[1645186754078,0.24400788,40518.0,40515.0,0.0093]
[1645186754279,0.061735,40528.0,40521.0,0.00026419]
[1645186754482,0.111134,40529.0,40521.0,0.00026419]
[1645186754483,0.0494,40529.0,40521.0,0.00026419]
[1645186754679,0.332495,40528.0,40521.0,0.00026419]
[1645186754878,0.332495,40527.0,40521.0,0.00026419]
[1645186755079,0.332495,40528.0,40521.0,0.00026419]
[1645186755279,0.332495,40527.0,40520.0,0.0093]
[1645186755479,0.332495,40527.0,40522.0,0.00026419]
[1645186755679,0.21317715,40528.0,40522.0,0.00026419]
[1645186756279,0.21317715,40528.0,40524.0,0.004356]
[1645186756280,0.332495,40527.0,40524.0,0.004356]
[1645186758830,0.333495,40527.0,40524.0,0.004356]
[1645186760132,0.332495,40527.0,40524.0,0.004356]
[1645186760932,0.332495,40527.0,40525.0,0.00216885]
[1645186760933,0.333495,40527.0,40525.0,0.00216885]
[1645186761135,0.333495,40527.0,40526.0,0.00224675]
[1645186761783,0.383495,40527.0,40526.0,0.00224675]
[1645186762180,0.431895,40527.0,40526.0,0.00224675]
[1645186766056,0.431895,40527.0,40525.0,0.00670125]
[1645186767159,1.2,40526.0,40519.0,0.56095874]
[1645186767360,0.061748,40524.0,40519.0,0.56095874]
[1645186767561,0.381895,40523.0,40519.0,0.56095874]
[1645186768159,0.20819485,40522.0,40519.0,0.56095874]
[1645186768357,0.23444893,40520.0,40519.0,0.56095874]
[1645186768558,0.61634393,40520.0,40519.0,0.56095874]
[1645186768987,0.61624393,40520.0,40519.0,0.56095874]
[1645186771092,0.76624393,40520.0,40519.0,0.56095874]
[1645186771787,1.06624393,40520.0,40519.0,0.56095874]
[1645186771993,0.30351062,40516.0,40514.0,0.527177]
[1645186772290,0.68460996,40515.0,40514.0,0.527177]
[1645186772489,0.381895,40515.0,40514.0,0.527177]
[1645186773343,0.6123819,40515.0,40514.0,0.527177]
[1645186774745,0.381895,40515.0,40514.0,0.527177]
[1645186775547,0.0494,40515.0,40514.0,0.527177]
[1645186775947,0.0494,40515.0,40514.0,0.82794571]
[1645186776150,0.0032092,40515.0,40514.0,0.82794571]
[1645186776595,0.0032092,40515.0,40514.0,0.92794571]
[1645186776795,0.0032092,40515.0,40514.0,0.82794571]
[1645186777097,0.0052092,40515.0,40514.0,0.82794571]
[1645186778094,0.0032092,40515.0,40514.0,0.82794571]
[1645186778996,0.0052092,40515.0,40514.0,0.82794571]
[1645186780150,0.0032092,40515.0,40514.0,0.82794571]
[1645186780345,0.0032092,40515.0,40514.0,0.87794571]
[1645186780557,0.0032092,40515.0,40514.0,0.97794571]
[1645186780945,0.00206853,40515.0,40514.0,0.88022984]
[1645186781146,0.00206853,40515.0,40514.0,0.98262052]
[1645186781749,0.00206853,40515.0,40514.0,0.93262052]
[1645186782748,0.00206853,40515.0,40514.0,0.98262052]
[1645186782949,0.00306853,40515.0,40514.0,0.98262052]
[1645186783159,0.00306853,40515.0,40514.0,0.83262052]
[1645186783550,0.00306853,40515.0,40514.0,0.53185181]
[1645186784185,0.00206853,40515.0,40514.0,0.53185181]
[1645186784387,0.22606456,40521.0,40515.0,0.00413705]
[1645186784685,0.061739,40524.0,40515.0,0.00413705]
[1645186784885,0.001,40520.0,40518.0,0.34133868]
[1645186786189,0.37247431,40524.0,40518.0,0.34133868]
[1645186786387,0.332495,40523.0,40518.0,0.34133868]
[1645186787190,0.332495,40523.0,40517.0,0.0002642]
[1645186787648,0.332495,40523.0,40515.0,0.01343705]
[1645186787841,0.332495,40523.0,40518.0,0.0002642]
[1645186788042,0.332495,40523.0,40518.0,0.19445387]
[1645186788446,0.332495,40523.0,40519.0,0.25737829]
[1645186788642,0.337495,40523.0,40519.0,0.25737829]
[1645186788842,0.337495,40523.0,40518.0,0.19418967]
[1645186789043,0.337495,40523.0,40519.0,0.0002642]
[1645186789842,0.387495,40523.0,40519.0,0.0002642]
[1645186790045,0.387495,40523.0,40515.0,0.01343705]
[1645186790046,0.332749,40522.0,40515.0,0.01343705]
[1645186790243,0.086486,40521.0,40519.0,0.0002642]
[1645186790443,0.08368615,40521.0,40519.0,0.0002642]
[1645186790947,0.20818015,40521.0,40519.0,0.00440617]
[1645186791145,0.20818015,40521.0,40519.0,0.00414197]
[1645186791682,0.70673489,40520.0,40519.0,0.00414197]
[1645186794886,0.70773489,40520.0,40519.0,0.00414197]
[1645186798980,0.70873489,40520.0,40519.0,0.00414197]
[1645186799183,0.70373489,40520.0,40519.0,0.00414197]
[1645186800182,0.70173489,40520.0,40519.0,0.00414197]
[1645186800883,0.70660649,40520.0,40515.0,0.01343705]
[1645186801087,0.083702,40519.0,40517.0,0.0002642]
[1645186801685,0.133702,40519.0,40517.0,0.0002642]
[1645186802084,0.133702,40519.0,40515.0,0.00413705]
[1645186802284,0.183102,40519.0,40516.0,0.0002642]
[1645186803343,0.183102,40519.0,40515.0,0.00413705]
[1645186803544,0.183102,40519.0,40515.0,0.00440126]
[1645186803749,0.133102,40519.0,40515.0,0.00440126]
[1645186804546,0.133102,40519.0,40514.0,0.46071362]
[1645186804747,0.55636273,40515.0,40514.0,0.46071362]
[1645186808890,0.60636273,40515.0,40514.0,0.46071362]
[1645186809889,0.382392,40515.0,40514.0,0.46071362]
[1645186810941,0.382392,40515.0,40514.0,0.46281677]
[1645186813882,0.332392,40515.0,40514.0,0.46281677]
[1645186814885,0.331982,40515.0,40514.0,0.46281677]
[1645186815086,0.381982,40515.0,40514.0,0.46281677]
[1645186815286,0.431382,40515.0,40514.0,0.46281677]
[1645186815888,0.431382,40515.0,40514.0,0.4648258]
[1645186816188,0.73325014,40515.0,40514.0,0.4648258]
[1645186816591,0.431382,40515.0,40514.0,0.4648258]
[1645186816987,0.431582,40515.0,40514.0,0.4648258]
[1645186818834,0.481582,40515.0,40514.0,0.4648258]
[1645186819635,0.431582,40515.0,40514.0,0.4648258]
[1645186820235,0.481582,40515.0,40514.0,0.4648258]
[1645186820934,0.481582,40515.0,40514.0,0.46281677]
[1645186821593,0.431582,40515.0,40514.0,0.46281677]
[1645186821795,0.381582,40515.0,40514.0,0.46281677]
[1645186822192,0.73345014,40515.0,40514.0,0.46281677]
[1645186822397,0.431582,40515.0,40514.0,0.46281677]
[1645186823195,0.431582,40515.0,40508.0,0.00399249]
[1645186823196,0.30997577,40514.0,40508.0,0.00399249]
[1645186823402,0.1,40510.0,40508.0,0.00399249]
[1645186823598,0.381377,40509.0,40508.0,0.00399249]
[1645186823795,0.481377,40509.0,40508.0,0.00399249]
[1645186823998,0.581377,40509.0,40508.0,0.00399249]
[1645186824198,1.37321526,40509.0,40508.0,0.00399249]
[1645186824798,1.1501799,40509.0,40508.0,0.00399249]
[1645186825438,1.08840503,40509.0,40508.0,0.00399249]
[1645186825640,1.39185349,40509.0,40508.0,0.00399249]
[1645186826137,1.39285349,40509.0,40508.0,0.00399249]
[1645186826739,0.061771,40505.0,40495.0,0.1225]
[1645186826943,0.68482546,40504.0,40495.0,0.0098]
[1645186827340,0.24472383,40502.0,40495.0,0.0098]
[1645186827540,0.083805,40501.0,40497.0,0.00026409]
[1645186827741,0.21478095,40500.0,40497.0,0.00026409]
[1645186827942,0.331977,40499.0,40497.0,0.00026409]
[1645186828142,0.29857095,40500.0,40499.0,0.22928623]
[1645186829096,0.29957095,40500.0,40499.0,0.22928623]
[1645186830300,0.29857095,40500.0,40499.0,0.22928623]
[1645186830498,0.34857095,40500.0,40499.0,0.22928623]
[1645186830699,0.34797095,40500.0,40499.0,0.22928623]
[1645186831200,0.34860717,40500.0,40499.0,0.22928623]
[1645186834647,0.70385367,40500.0,40499.0,0.22928623]
[1645186835042,0.70485367,40500.0,40499.0,0.22928623]
[1645186836041,0.70646089,40500.0,40499.0,0.22928623]
[1645186836890,0.70546089,40500.0,40499.0,0.22928623]
[1645186838290,0.70646089,40500.0,40499.0,0.22928623]
[1645186838491,2.26946089,40500.0,40499.0,0.04566212]
[1645186838796,2.26946089,40500.0,40494.0,0.22869728]
[1645186838797,1.374791,40498.0,40494.0,0.22869728]
[1645186838994,0.13319,40497.0,40494.0,0.22869728]
[1645186839299,0.25219875,40496.0,40494.0,0.0943371]
[1645186839491,0.13319,40495.0,40494.0,0.0943371]
[1645186839692,0.13319,40495.0,40480.0,0.5324]
[1645186839693,1.313,40494.0,40480.0,0.5324]
[1645186839899,1.313,40490.0,40480.0,0.5324]
[1645186840151,0.12361513,40491.0,40480.0,0.5324]
[1645186840152,0.13319,40489.0,40480.0,0.5324]
[1645186840341,0.13319,40489.0,40476.0,0.1234]
[1645186840342,0.0494,40488.0,40476.0,0.1234]
[1645186840542,0.08379,40487.0,40477.0,0.0095]
[1645186840743,0.0494,40486.0,40477.0,0.0095]
[1645186840943,0.08379,40485.0,40477.0,0.0095]
[1645186841242,0.08379,40483.0,40477.0,0.0095]
[1645186841442,0.0494,40482.0,40477.0,0.0095]
[1645186841843,0.0494,40482.0,40471.0,0.1694]
[1645186841844,0.08379,40481.0,40471.0,0.1694]
[1645186842043,0.0494,40481.0,40472.0,0.0595]
[1645186842343,0.0494,40481.0,40472.0,0.0095]
[1645186842647,0.08379,40480.0,40475.0,0.32935191]
[1645186844691,0.111202,40481.0,40472.0,0.0095]
[1645186845091,0.061805,40479.0,40472.0,0.0095]
[1645186845491,0.0494,40481.0,40472.0,0.0095]
[1645186845692,0.0494,40481.0,40476.0,0.28867457]
[1645186845896,0.08379,40480.0,40476.0,0.28867457]
[1645186846192,0.08379,40480.0,40474.0,0.0022989]
[1645186846794,0.00282711,40481.0,40474.0,0.0022989]
[1645186847844,0.00282711,40481.0,40480.0,0.29169555]
[1645186848043,0.08661711,40481.0,40474.0,0.0022989]
[1645186848242,0.00282711,40481.0,40474.0,0.0022989]
[1645186848642,0.00282711,40481.0,40475.0,0.06178987]
[1645186849445,0.00282711,40481.0,40479.0,0.34700272]
[1645186849746,0.08379,40480.0,40474.0,0.0022989]
[1645186849946,0.00282711,40481.0,40474.0,0.0022989]
[1645186850147,0.25012071,40479.0,40478.0,0.000264]
[1645186850352,0.08379,40479.0,40478.0,0.000264]
[1645186851147,0.08479,40479.0,40476.0,0.00229679]
[1645186851395,0.001,40479.0,40476.0,0.00256079]
[1645186851590,0.08379,40478.0,40476.0,0.00256079]
[1645186852094,0.3051661,40478.0,40476.0,0.00256079]
[1645186852290,0.08379,40477.0,40476.0,0.00229679]
[1645186852894,0.061806,40479.0,40476.0,0.00229679]
[1645186853090,0.001,40477.0,40476.0,0.00229679]
[1645186853291,0.08479,40477.0,40476.0,0.00229679]
[1645186853893,0.38479,40477.0,40476.0,0.00229679]
[1645186854292,0.08379,40477.0,40476.0,0.00229679]
[1645186855741,0.38379,40477.0,40476.0,0.00229679]
[1645186856041,0.38551851,40477.0,40476.0,0.00198162]
[1645186856446,0.38551851,40477.0,40468.0,0.1298]
[1645186856447,1.41542864,40476.0,40468.0,0.1298]
[1645186856646,1.41542864,40476.0,40458.0,0.5324]
[1645186856647,0.061825,40473.0,40458.0,0.5824]
[1645186856848,0.17305,40475.0,40459.0,0.0092]
[1645186856849,0.08379,40470.0,40459.0,0.0092]
[1645186857044,0.13319,40469.0,40459.0,0.0092]
[1645186857245,0.96503,40468.0,40458.0,0.5824]
[1645186857451,0.43319,40467.0,40458.0,0.5824]
[1645186857645,0.08379,40462.0,40458.0,0.89325196]
[1645186857946,0.08379,40460.0,40458.0,0.89325196]
[1645186858148,0.061831,40464.0,40462.0,0.39956999]
[1645186858348,0.13319,40463.0,40462.0,0.39956999]
[1645186859412,0.0494,40463.0,40462.0,0.39956999]
[1645186860210,0.0494,40463.0,40462.0,0.69612585]
[1645186860408,0.13319,40463.0,40462.0,0.69612585]
[1645186860610,0.08379,40463.0,40462.0,0.69612585]
[1645186861014,0.08479,40463.0,40462.0,0.69612585]
[1645186861212,0.001,40463.0,40462.0,0.69612585]
[1645186861811,0.08479,40463.0,40462.0,0.69612585]
[1645186862211,0.08479,40463.0,40462.0,0.39956999]
[1645186862413,0.08379,40463.0,40462.0,0.39956999]
[1645186863044,0.08217576,40463.0,40462.0,0.39956999]
[1645186863245,0.08317576,40463.0,40462.0,0.39956999]
[1645186863450,0.00398908,40463.0,40462.0,0.39956999]
[1645186864447,0.00298908,40463.0,40462.0,0.39956999]
[1645186866246,0.0053609,40463.0,40462.0,0.39956999]
[1645186867489,0.00237182,40463.0,40462.0,0.39956999]
[1645186869189,0.00637182,40463.0,40462.0,0.39956999]
[1645186870462,0.30237182,40463.0,40462.0,0.39956999]
[1645186870961,0.35064353,40463.0,40462.0,0.40146288]
[1645186871761,0.05064353,40463.0,40462.0,0.40146288]
[1645186872160,0.05064353,40463.0,40462.0,0.32626288]
[1645186872762,0.35064353,40463.0,40462.0,0.32626288]
[1645186873162,0.05064353,40463.0,40462.0,0.32626288]
[1645186873563,0.35064353,40463.0,40462.0,0.32626288]
[1645186873890,0.45064353,40463.0,40462.0,0.32626288]
[1645186874687,0.15064353,40463.0,40462.0,0.32626288]
[1645186875088,0.05264353,40463.0,40462.0,0.32626288]
[1645186875887,0.0532621,40463.0,40462.0,0.32681618]
[1645186876288,0.0512621,40463.0,40462.0,0.32681618]
[1645186876690,0.3512621,40463.0,40462.0,0.32681618]
[1645186876890,0.5130981,40463.0,40462.0,0.32681618]
[1645186877388,0.2130981,40463.0,40462.0,0.32681618]
[1645186877650,0.1130981,40463.0,40462.0,0.32681618]
[1645186878241,0.2130981,40463.0,40462.0,0.32681618]
[1645186878443,0.1630981,40463.0,40462.0,0.32681618]
[1645186878844,0.2130981,40463.0,40462.0,0.32681618]
[1645186879243,0.2140981,40463.0,40462.0,0.32681618]
[1645186880444,0.2130981,40463.0,40462.0,0.32681618]
[1645186882890,0.1630981,40463.0,40462.0,0.32681618]
[1645186883692,0.0512621,40463.0,40462.0,0.32681618]
[1645186885150,0.0522621,40463.0,40462.0,0.32681618]
[1645186885546,0.0512621,40463.0,40462.0,0.32681618]
[1645186885745,0.3512621,40463.0,40462.0,0.32681618]
[1645186885945,0.35058154,40463.0,40462.0,0.32681618]
[1645186886547,0.05058154,40463.0,40462.0,0.32681618]
[1645186886752,0.00118154,40463.0,40462.0,0.32681618]
[1645186891095,0.00267687,40463.0,40462.0,0.32436999]
[1645186893748,0.00267687,40463.0,40462.0,0.32427973]
[1645186896691,0.00367687,40463.0,40462.0,0.32427973]
[1645186897490,0.00267687,40463.0,40462.0,0.32427973]
[1645186899490,0.00267687,40463.0,40462.0,0.51811817]
[1645186900345,0.00367687,40463.0,40462.0,0.51811817]
[1645186900743,0.00178868,40463.0,40462.0,0.52027812]
[1645186900946,0.0023821,40463.0,40462.0,0.52027812]
[1645186901545,0.0023821,40463.0,40462.0,0.32643968]
[1645186901546,0.0013821,40463.0,40462.0,0.32643968]
[1645186906297,0.0023821,40463.0,40462.0,0.32643968]
[1645186907743,0.0013821,40463.0,40462.0,0.32643968]
[1645186908445,0.0023821,40463.0,40462.0,0.32643968]
[1645186909546,0.0013821,40463.0,40462.0,0.32643968]
[1645186910345,0.0023821,40463.0,40462.0,0.32643968]
[1645186911597,0.0013821,40463.0,40462.0,0.32643968]
[1645186912496,0.0023821,40463.0,40462.0,0.32643968]
[1645186913699,0.0013821,40463.0,40462.0,0.32643968]
[1645186914500,0.0023821,40463.0,40462.0,0.32643968]
[1645186915150,0.0023821,40463.0,40462.0,0.32633389]
[1645186915745,0.0013821,40463.0,40462.0,0.32633389]
[1645186916446,0.0517821,40463.0,40462.0,0.32633389]
[1645186917646,0.0507821,40463.0,40462.0,0.32633389]
[1645186918048,0.0013821,40463.0,40462.0,0.32633389]
[1645186920406,0.001,40463.0,40462.0,0.62633389]
[1645186920604,0.17835052,40468.0,40462.0,1.10912189]
[1645186920802,0.061814,40476.0,40466.0,0.1]
[1645186921001,0.02289268,40481.0,40466.0,0.1]
[1645186921002,0.02289268,40481.0,40469.0,0.1]
[1645186921202,0.02289268,40481.0,40472.0,0.1]
[1645186921401,0.02289268,40481.0,40470.0,0.682788]
[1645186921402,0.02289268,40481.0,40473.0,0.3098]
[1645186921797,0.02289268,40481.0,40473.0,0.5098]
[1645186921999,0.02289268,40481.0,40474.0,0.26884978]
[1645186922197,0.02289268,40481.0,40480.0,0.2742348]
[1645186923950,0.02289268,40481.0,40480.0,0.3742348]
[1645186924349,0.02289268,40481.0,40480.0,0.4742348]
[1645186925750,0.02289268,40481.0,40480.0,0.6242348]
[1645186925950,0.02289268,40481.0,40480.0,0.3242348]
[1645186926397,0.02660617,40481.0,40480.0,0.6242348]
[1645186926599,0.02660617,40481.0,40480.0,0.6742348]
[1645186927597,0.02460617,40481.0,40480.0,0.6742348]
[1645186927796,0.02460617,40481.0,40480.0,0.6242348]
[1645186927999,0.02460617,40481.0,40480.0,0.8742348]
[1645186928207,0.1659365,40490.0,40480.0,2.2615348]
[1645186928400,0.1659365,40490.0,40483.0,0.1]
[1645186928606,0.1659365,40490.0,40484.0,0.3]
[1645186928998,0.1659365,40490.0,40485.0,0.22409521]
[1645186929398,0.1659365,40490.0,40486.0,0.05]
[1645186929599,0.1659365,40490.0,40487.0,0.360771]
[1645186929797,0.1659365,40490.0,40487.0,0.410771]
[1645186930001,0.1659365,40490.0,40487.0,0.510771]
[1645186930252,0.1659365,40490.0,40487.0,0.211771]
[1645186930452,0.1659365,40490.0,40487.0,0.15]
[1645186930762,0.1659365,40490.0,40485.0,0.1235449]
[1645186930953,0.1659365,40490.0,40481.0,0.009]
[1645186931555,0.1659365,40490.0,40483.0,0.06178549]
[1645186933258,0.1659365,40490.0,40481.0,0.13256438]
[1645186933455,0.1659365,40490.0,40481.0,0.38539207]
[1645186934403,0.1659365,40490.0,40484.0,0.06178175]
[1645186934603,0.1659365,40490.0,40481.0,0.13256438]
[1645186934807,0.36551493,40490.0,40481.0,0.009]
[1645186935008,0.20669819,40483.0,40481.0,0.009]
[1645186935205,0.20669819,40483.0,40480.0,0.00425871]
[1645186936204,0.25609819,40483.0,40479.0,0.00197497]
[1645186937952,0.0494,40483.0,40479.0,0.00197497]
[1645186940052,0.19432087,40480.0,40479.0,0.00197497]
[1645186940255,0.44295733,40480.0,40479.0,0.00197497]
[1645186940453,0.24372087,40480.0,40479.0,0.00197497]
[1645186943306,0.57958537,40480.0,40479.0,0.00197497]
[1645186943509,0.47958537,40480.0,40479.0,0.00197497]
[1645186943704,0.57958537,40480.0,40479.0,0.00197497]
[1645186944105,0.34372087,40480.0,40479.0,0.00197497]
[1645186944505,0.34472087,40480.0,40479.0,0.00197497]
[1645186945748,0.34372087,40480.0,40479.0,0.00197497]
[1645186946153,0.34372087,40480.0,40479.0,0.00584597]
[1645186946550,0.34472087,40480.0,40479.0,0.00584597]
[1645186947653,0.64472087,40480.0,40479.0,0.00584597]
[1645186947853,0.64472087,40480.0,40479.0,0.00194176]
[1645186948154,0.69472087,40480.0,40479.0,0.00194176]
[1645186948353,0.69372087,40480.0,40479.0,0.00194176]
[1645186948553,0.69472087,40480.0,40479.0,0.00194176]
[1645186949797,0.69372087,40480.0,40479.0,0.00194176]
[1645186951098,0.061811,40476.0,40472.0,0.00024783]
[1645186951302,0.0494,40475.0,40472.0,0.00024783]
[1645186952100,0.0494,40475.0,40466.0,0.32804347]
[1645186952300,0.28796783,40473.0,40471.0,0.0002478]
[1645186952500,0.0494,40472.0,40471.0,0.0002478]
[1645186953355,0.0494,40472.0,40465.0,0.0094]
[1645186953546,0.0494,40472.0,40469.0,0.0002478]
[1645186954548,0.0494,40472.0,40467.0,0.06180897]
[1645186954749,0.0494,40472.0,40468.0,0.0002478]
[1645186955348,0.0494,40472.0,40469.0,0.26279583]
[1645186955753,0.001,40477.0,40469.0,0.26279583]
[1645186955950,0.3344,40480.0,40470.0,0.1118004]
[1645186956400,0.0034114,40472.0,40470.0,0.1118004]
[1645186956604,0.0034114,40472.0,40471.0,0.0095]
[1645186961061,0.00170539,40472.0,40471.0,0.0116939]
[1645186961261,0.00370539,40472.0,40471.0,0.0116939]
[1645186962057,0.00170539,40472.0,40471.0,0.0116939]
[1645186962859,0.00370539,40472.0,40471.0,0.0116939]
[1645186964697,0.00170539,40472.0,40471.0,0.0116939]
[1645186964897,0.00370539,40472.0,40471.0,0.0116939]
[1645186966100,0.00170539,40472.0,40471.0,0.0116939]
[1645186966299,0.00128723,40472.0,40471.0,0.0116939]
[1645186966904,0.00328723,40472.0,40471.0,0.0116939]
[1645186968151,0.00128723,40472.0,40471.0,0.0116939]
[1645186968952,0.00328723,40472.0,40471.0,0.0116939]
[1645186970150,0.00128723,40472.0,40471.0,0.0116939]
[1645186970956,0.002,40472.0,40471.0,0.0021939]
[1645186971155,0.0514,40472.0,40471.0,0.0021939]
[1645186972007,0.26413379,40472.0,40471.0,0.0021939]
[1645186972209,0.31213379,40472.0,40471.0,0.0021939]
[1645186972405,0.41213379,40472.0,40471.0,0.0021939]
[1645186972806,0.41313379,40472.0,40471.0,0.0021939]
[1645186973207,0.71313379,40472.0,40471.0,0.0021939]
[1645186974208,0.71213379,40472.0,40471.0,0.0021939]
[1645186974909,0.71313379,40472.0,40471.0,0.0021939]
[1645186975156,0.2458388,40458.0,40456.0,0.0096]
[1645186975352,0.2458388,40458.0,40450.0,0.4419]
[1645186975551,0.3024,40463.0,40451.0,0.05]
[1645186975750,0.0024,40463.0,40452.0,0.0091]
[1645186976252,0.061835,40461.0,40452.0,0.0091]
[1645186976458,0.52112989,40460.0,40457.0,0.00023732]
[1645186976651,0.0494,40459.0,40457.0,0.00023732]
[1645186977256,0.27912391,40459.0,40457.0,0.00023732]
[1645186977551,0.123692,40454.0,40445.0,0.22932352]